Cogmind - Beta 11.1 @@@ ROGUE MODE // 2022.11.07 @ 11:10:06 Player: Serom_69 Result: Core destroyed Performance ------------- Evolutions (1) 500 Regions Visited (3) 600 Robots Destroyed (9) 45 Value Destroyed (90) 90 Prototype IDs (0) 0 Alien Tech Used (0) 0 Bonus (0) 0 TOTAL SCORE: 1235 Bonus ------- None Cogmind --------- Core Integrity 0/400 Matter 298/300 Energy 85/100 System Corruption 2% Temperature Cool (0) Movement Core (50) Location -9/Materials Parts ------- > --- POWER (1) -------- (None) > --- PROPULSION (3) --- (None) > --- UTILITY (3) ------ Signal Interpreter > --- WEAPON (2) ------- (None) > --- INVENTORY (5) ---- (None) Peak State ------------ > --- POWER ------------ Light Ion Engine > --- PROPULSION ------- Flight Unit Flight Unit Flight Unit > --- UTILITY ---------- Small Matter Pod Signal Interpreter Seismic Detector > --- WEAPON ----------- Minigun Improved Datajack > --- INVENTORY -------- (None) [Rating: 13] Favorites ----------- Power Light Ion Engine Engine Light Ion Engine Propulsion Compact Wheel Wheel Compact Wheel Flight Unit Flight Unit Utility Small Storage Unit Device Seismic Detector Storage Small Storage Unit Processor Signal Interpreter Weapon Assault Rifle Ballistic Gun Assault Rifle Special Weapon Welding Torch Special Melee Weapon Datajack Build | -11 -10 -10 -9 ------- Run | Scr Mat Min Mat Slots Evolved 2 | . . . 2 Power . | . . . . Propulsion 1 | . . . 1 Utility 1 | . . . 1 Weapon . | . . . . Parts Attached 22 | 4 1 3 14 Power 2 | . . 1 1 Engine 2 | . . 1 1 Core . | . . . . Reactor . | . . . . Propulsion 10 | 2 . . 8 Treads . | . . . . Leg . | . . . . Wheel 4 | 2 . . 2 Hover . | . . . . Flight 6 | . . . 6 Utility 5 | 1 1 1 2 Device 1 | . . . 1 Storage 2 | 1 1 . . Processor 2 | . . 1 1 Hackware . | . . . . Protection . | . . . . Artifact . | . . . . Weapon 5 | 1 . 1 3 Energy Gun . | . . . . Energy Cannon . | . . . . Ballistic Gun 2 | 1 . . 1 Ballistic Cannon . | . . . . Launcher . | . . . . Special Weapon 1 | . . . 1 Impact Weapon . | . . . . Slashing Weapon . | . . . . Piercing Weapon . | . . . . Special Melee Weapon 2 | . . 1 1 Unidentified Prototypes . | . . . . Parts Lost 14 | . . 1 13 Power 2 | . . . 2 Propulsion 7 | . . . 7 Utility 2 | . . 1 1 Weapon 3 | . . . 3 Highest Loss Streak 10 | . . 1 10 To Critical Strikes . | . . . . Average Slot Usage (%) 75 | . 57 82 70 Engine 9 | . . 13 5 Wheel 18 | . 28 28 8 Flight 6 | . . . 12 Device 3 | . . . 7 Storage 10 | . 14 14 7 Processor 7 | . . 4 10 Ballistic Gun 11 | . 14 14 8 Special Melee Weapon 7 | . . 6 9 Naked Turns . | . . . . Heaviest Build 11 | 7 8 11 9 Greatest Support 28 | 26 26 26 28 Greatest Overweight (x) 1 | . . . 1 Average Overweight (x) . | . . . . Largest Inventory Capacity 8 | 8 8 8 5 Average Capacity 6 | 7 8 5 5 Most Carried 4 | 4 2 2 3 Average Carried . | . 1 1 . Final Capacity 8 | 8 8 5 5 Final Carried 1 | 1 1 1 . Class Distribution -------------------- 98% | Mutant Dominant Class ---------------- Mutant | -10/Materials Mutant | -10/Mines Mutant | -9/Materials Resources | -11 -10 -10 -9 ----------- Run | Scr Mat Min Mat Matter Collected 415 | 220 . 132 63 Remotely . | . . . . Salvage Created 146 | . . 50 96 Parts 19 | . . 8 11 Haulers Intercepted . | . . . . Recyclers Shooed . | . . . . Parts Field Recycled . | . . . . Retrieved Matter . | . . . . Parts Self-Destructed . | . . . . Prevented . | . . . . Kills | -11 -10 -10 -9 ------- Run | Scr Mat Min Mat Combat Hostiles Destroyed 9 | . . 3 6 Melee 2 | . . . 2 Guns 7 | . . 3 4 Classes Destroyed 1 | . . 1 . Swarmer 9 | . . 3 6 Best Kill Streak 3 | . . 3 3 Combat Bots Only 3 | . . 3 3 Max Kills in Single Turn 1 | . . 1 1 Gunslinging . | . . . . Exploded . | . . . . Melee 1 | . . . 1 Uniques/NPCs Destroyed . | . . . . Combat | -11 -10 -10 -9 -------- Run | Scr Mat Min Mat Damage Taken 1146 | . . 151 995 Core 441 | . . 35 406 Absorbed by Shields . | . . . . Core Remaining (%) 93 | 100 . 86 . Volleys Fired 34 | . 1 8 25 Largest 1 | . 1 1 1 Hottest 25 | . 20 20 25 Shots Fired 34 | . 1 8 25 Gun 31 | . 1 8 22 Cannon . | . . . . Launcher . | . . . . Special 3 | . . . 3 Kinetic 31 | . 1 8 22 Thermal 3 | . . . 3 Explosive . | . . . . Electromagnetic . | . . . . Robot Hit Streak 5 | . . 5 5 Robot Miss Streak 3 | . . 3 2 Penetration Max . | . . . . Secondary Targets . | . . . . Shots Hit Robots 26 | . . 11 15 Core Hits 17 | . . 4 13 Critical Kills . | . . . . Critical Parts Destroyed . | . . . . Critical Strikes . | . . . . Melee Attacks 10 | . . 7 3 Impact . | . . . . Slashing . | . . . . Piercing . | . . . . Sneak Attacks 7 | . . 6 1 Combat Hostiles . | . . . . Follow-up Attacks . | . . . . Damage Inflicted 260 | . . 69 191 Guns 215 | . . 63 152 Cannons . | . . . . Explosions . | . . . . Melee . | . . . . Ramming 41 | . . 6 35 Kinetic 215 | . . 63 152 Thermal 4 | . . . 4 Explosive . | . . . . Electromagnetic . | . . . . Impact . | . . . . Slashing . | . . . . Piercing . | . . . . Highest Corruption 2 | . . . 2 Average Corruption 2 | . . . 2 Corruption Purged . | . . . . Corruption Blocked . | . . . . Overload Shots . | . . . . Overflow Damage . | . . . . Projectiles . | . . . . Explosions . | . . . . Melee . | . . . . Knockbacks . | . . . . Impact . | . . . . Kinetic . | . . . . Secondary . | . . . . Self-Inflicted Damage 18 | . . 3 15 Shots . | . . . . Rammed 12 | . . 1 11 Targets Rammed 12 | . . 1 11 Kicked . | . . . . Crushed . | . . . . Highest Temperature 11 | . . . 11 Average Temperature 7 | . . . 7 Received Heat Transfer 96 | . . . 96 Siege Activations . | . . . . Robots Corrupted . | . . . . Combat Hostiles . | . . . . Parts Fried . | . . . . Impact Corruptions . | . . . . Robots Melted . | . . . . Combat Hostiles . | . . . . Parts Melted . | . . . . Heat Transferred 25 | . . . 25 Parts Sabotaged . | . . . . Parts Stolen . | . . . . Parts Stripped . | . . . . Power Chain Reactions . | . . . . Missiles Intercepted . | . . . . Alert | -11 -10 -10 -9 ------- Run | Scr Mat Min Mat Peak Influence 185 | . . 105 185 Initial . | . . . . Average 34 | . . 31 108 Maximum Alert Level . | . . . . Low Security (%) 100 | 100 100 100 100 Level 1 . | . . . . Level 2 . | . . . . Level 3 . | . . . . Level 4 . | . . . . Level 5 . | . . . . High Security . | . . . . Max Security . | . . . . Squads Dispatched 1 | . . . 1 Investigation 1 | . . . 1 Extermination . | . . . . Reinforcement . | . . . . Assault . | . . . . Garrison . | . . . . Intercept . | . . . . Searches Triggered . | . . . . Construction Impeded . | . . . . Haulers Reinforced . | . . . . Active Scanning Responses . | . . . . Cargo Convoy Interrupts . | . . . . Stealth | -11 -10 -10 -9 --------- Run | Scr Mat Min Mat Distress Signals 1 | . . . 1 Communications Jammed . | . . . . Distress Signals . | . . . . Times Spotted 29 | . . 6 23 Peak Tracking Total 8 | . . 3 8 Tactical Retreats 5 | . . 2 3 Traps | -11 -10 -10 -9 ------- Run | Scr Mat Min Mat Traps Triggered . | . . . . Indirectly . | . . . . Trap Hack Attempts . | . . . . Triggered . | . . . . Disarmed . | . . . . Reprogrammed . | . . . . Reused . | . . . . Traps Extracted . | . . . . Installed . | . . . . Triggered . | . . . . Machines | -11 -10 -10 -9 ---------- Run | Scr Mat Min Mat Machines Disabled . | . . . . Max in Single Turn . | . . . . Machines Sabotaged . | . . . . Garrisons Compromised . | . . . . Overloaded Fab Kills . | . . . . Hacking | -11 -10 -10 -9 --------- Run | Scr Mat Min Mat Machines Accessed 3 | . . . 3 Terminals 3 | . . . 3 Fabricators . | . . . . Repair Stations . | . . . . Recycling Units . | . . . . Scanalyzers . | . . . . Garrison Access . | . . . . Total Hacks 11 | . . . 11 Successful 9 | . . . 9 Failed 2 | . . . 2 Catastrophic . | . . . . Database Lockouts . | . . . . Manual . | . . . . Terminals 11 | . . . 11 Fabricators . | . . . . Repair Stations . | . . . . Recycling Units . | . . . . Scanalyzers . | . . . . Garrison Access . | . . . . Terminal Hacks 9 | . . . 9 Record 5 | . . . 5 Alert Level 3 | . . . 3 Locate Traps 1 | . . . 1 Fabricator Hacks . | . . . . Repair Station Hacks . | . . . . Recycling Unit Hacks . | . . . . Scanalyzer . | . . . . Garrison Access Hacks . | . . . . Unauthorized Hacks . | . . . . Terminals . | . . . . Fabricators . | . . . . Repair Stations . | . . . . Recycling Units . | . . . . Scanalyzers . | . . . . Garrison Access . | . . . . Data Cores Recovered . | . . . . Used . | . . . . Hacking Detections 3 | . . . 3 Full Trace Events 1 | . . . 1 Feedback Events . | . . . . Feedback Blocked . | . . . . Robot Schematics Acquired . | . . . . Robots Built . | . . . . Authchips . | . . . . Time . | . . . . Total Robot Build Rating . | . . . . Part Schematics Acquired . | . . . . Parts Built . | . . . . Authchips . | . . . . Time . | . . . . Total Part Build Rating . | . . . . Parts Repaired . | . . . . Time . | . . . . Parts Recycled . | . . . . Recycled Matter . | . . . . Retrieved Matter . | . . . . Retrieved Components . | . . . . Parts Scanalyzed . | . . . . Part Schematics Acquired . | . . . . Parts Damaged . | . . . . Bothacking | -11 -10 -10 -9 ------------ Run | Scr Mat Min Mat Used RIF Installer . | . . . . Robots Hacked 4 | . . 3 1 Non-combat 4 | . . 3 1 Combat . | . . . . Robot Hacks Applied 6 | . . 5 1 parse_system 3 | . . 3 . no_distress 2 | . . 2 . find_station 1 | . . . 1 Relay Couplers Released . | . . . . Fabnet Peak Effective % . | . . . . Robots Rewired . | . . . . Allies Hacked . | . . . . Hacks Repelled . | . . . . Allies | -11 -10 -10 -9 -------- Run | Scr Mat Min Mat Total Allies . | . . . . Largest Group . | . . . . Highest-Rated Group . | . . . . Highest-Rated Ally . | . . . . Total Orders . | . . . . Ally Attacks . | . . . . Total Damage . | . . . . Kills . | . . . . Allies Corrupted . | . . . . Allies Melted . | . . . . Intel | -11 -10 -10 -9 ------- Run | Scr Mat Min Mat Robot Analysis Total . | . . . . Derelict Logs Recovered 1 | . . 1 . Drone Launches . | . . . . Drone Recoveries . | . . . . Exploration | -11 -10 -10 -9 ------------- Run | Scr Mat Min Mat Turns Passed 1746 | 861 37 419 429 Spaces Moved 1258 | 379 37 427 415 Core 37 | 11 . . 26 Treads . | . . . . Legs . | . . . . Wheels 941 | 368 37 427 109 Hover . | . . . . Flight 280 | . . . 280 Fastest Speed 34 | 50 90 90 34 Average Speed 79 | 88 90 90 59 Slowest Speed 120 | 90 90 90 120 Overloaded Moves . | . . . . Propulsion Burnouts . | . . . . Robots Hopped 1 | . . . 1 Cave-ins Triggered . | . . . . Exploration Rate (%) 39 | 29 11 83 34 Regions Visited 3 Branch Regions 1 Pre-discovered Areas . | . . . . Known Exits Taken . | . . . . Unknown Exits Taken 3 | 1 1 1 . Scrap Searched 1 | . . 1 . Spaces Dug . | . . . . Terrain Destroyed . | . . . . Melee . | . . . . Projectile . | . . . . AOE . | . . . . Terrain Rammed . | . . . . Walls Destroyed . | . . . . Machines Disabled . | . . . . Actions | -11 -10 -10 -9 --------- Run | Scr Mat Min Mat Total 1965 | 903 39 449 574 Wait 605 | 516 . 2 87 Move 1253 | 378 36 426 413 Hop 1 | . . . 1 Pick Up 22 | 5 1 2 14 Fast Attach . | . . . . Attach 21 | 4 1 2 14 Detach . | . . . . Swap 1 | . . 1 . Drop 7 | . . . 7 Fire 34 | . 1 8 25 Melee 10 | . . 7 3 Ram 11 | . . 1 10 Kick . | . . . . Crush . | . . . . Escape Stasis . | . . . . Rewire . | . . . . Trap . | . . . . Miscellaneous . | . . . . Route ------- -11/Scrapyard -10/Materials -10/Mines (discovered 2 exits: *Mat x2) -9/Materials History --------- Turn | Location | Event 619 | -11/Scrapyard | Discovered new exit (range 15) 862 | -11/Scrapyard | Entered Materials 863 | -10/Materials | Build established: Mutant 875 | -10/Materials | Discovered new exit (range 15) 899 | -10/Materials | Entered Mines 901 | -10/Mines | Joined a pair of Derelicts in attacking an 0b10 outpost 938 | -10/Mines | Discovered new exit (range 9) 1164 | -10/Mines | Received a Rocket Launcher from a helpful Derelict 1174 | -10/Mines | Learned Materials stockpile data 1302 | -10/Mines | Discovered new exit (range 13) 1318 | -10/Mines | Entered Materials 1318 | -9/Materials | Evolved 2 slots: Propulsion x1, Utility x1 1682 | -9/Materials | Core integrity fell below 50% 1724 | -9/Materials | Core integrity fell below 20% 1747 | -9/Materials | Core destroyed Last Messages --------------- 01704_ K-01 Serf cleans the Material Compactor. 01713_ Connecting with Terminal... >>Traps(Locate) Found 3 traps in 1 array: 3x Alarm Trap Map updated. 01713_ Connecting with Terminal... 01721_ Flight Unit destroyed. 01732_ Acquired Welding Torch. 01741_ Welding Torch destroyed. 01742_ Slammed into S-10 Pest. 01742_ Destabilizing: System interference. 01742_ Signal Interpreter temporarily disabled. 01743_ Slammed into S-10 Pest. 01743_ S-10 Pest destroyed. 01744_ Slammed into S-10 Pest. 01744_ Destabilizing: System corrupted (+2). 01745_ Slammed into S-10 Pest. 01747_ S-10 Pest destroyed. 01747_ Destabilizing: Core damaged (-16). Map ----- +----------------------------------------------------+ | ??????????????????????????????????????????????? | | ??????????????????????????????????????????????? | | ??????????????????????????????????????????????? | | ??????????????????????????????????????????????? | | ??????????????????????????????????????????????? | | ??????????????????????????????????????????????? | | ??????????????????????????????????????????????? | | ??????[???????????????????????????????????????? | | ??????????????????????????????????????????????? | | ??????????????????????????????????????????????? | | ??????????????????????????????????????????????? | | ??????????????????????????????????????????????? | | ??????????????????????????????????????????????? | | ??????????????????????????????????????????????? | | ??????????????????????????????????????????? ? | | ??????????????????????????????????????????# # | | ??????????????????????????????????????????# # | | ??????????????????????????????????????????# # | | ?????????????????????????????????????????## # | | ?????????????????????????????????????????# | | ?????????????????????????????????????????# | | ?????????????????????????????????????????+ | | ?????????????????????????????????????????# | | ?????????????????????????????????????????? | | ?????????????????????########?????????????# # | | ?????????????????????#@%""" #?????????????# # | | ?????????????????????#=[""" #?????????????# # | | ?????????????????????# """ ############### # | | ?????????????????????#s% # # | | ?????????????????????# + | | ?????????????????????# # # | | ?????????????????????#########+#############+## | | ??????????????????????????????????????????????? | | ??????????????????????????????????????????????? | | ??????????????????????????????????????????????? | | ??????????????????????????????????????????????? | | ??????????????????????????????????????????????? | | ??????????????????????????????????????????????? | | ??????????????????????????????????????????????? | | ??????????????????????????????????????????????? | | | | | | | | | | | | | | | | | | | | | +----------------------------------------------------+ Best States ------------- Heat Dissipation 28 Energy Generation 10 Energy Capacity 125 Matter Stores 350 Matter Capacity 350 Sight Range 16 Terrain Scan Density 10 Evasion (%) 63 Targeting Accuracy 5 Item Schematics ----------------- None Robot Schematics ------------------ None Fabricated ------------ Nothing Alien Tech Used ----------------- None Achievements -------------- None Challenges ------------ None Game ------ Seed PrecisionMolecularClaws Manual? 1 Play Time 00:39:16 Cumulative 12.0 hours Start 2022.11.07 @ 09:57:30 End 2022.11.07 @ 11:10:06 Sessions 1 Manual Loads 0 Difficulty Rogue Special Mode None Game No. 8 Rogue 8 Adventurer 0 Explorer 0 Win Type - Total 0 Types 0/0/0/0/0/0/0/0/0 Lore% 5 Gallery% 11 Achievement% 12 Wizard Run 0 Options --------- ASCII 0 Keyboard 0 Movement Mouse Keybinds 0 Fullscreen 1 Font 24/Terminus Map View 76x50 Tactical HUD 1 Map Filters NONE Filters NONE Steam 1 RUN: 273f5c6a-5b59-4631-bcf8-c6c61965b5c2